Cogmind - Beta 15 @@@ ROGUE MODE // 2025.08.01 @ 01:14:59 Player: Inverisimilidude Result: Destroyed by 9H-AF2(R) with Subdweller Laser Performance ------------- Evolutions (0) 0 Regions Visited (3) 600 Robots Destroyed (29) 145 Value Destroyed (545) 545 Prototype IDs (11) 220 Alien Tech Used (0) 0 Bonus (0) 0 TOTAL SCORE: 1510 Bonus ------- None Cogmind --------- Core Integrity 0/250 Matter 184/300 Energy 247/250 System Corruption 1% Temperature Cool (6) Movement Rolling (155) Ox5 Location -10/Subcaves Parts ------- > --- POWER (1) -------- Ion Engine > --- PROPULSION (2) --- Light Treads Wheel > --- UTILITY (2) ------ High-capacity Storage Unit Sensor Array > --- WEAPON (2) ------- Light Assault Rifle Subdweller Shrapnel Launcher > --- INVENTORY (20) --- Ion Engine Light Treads Light Treads Light Treads Compact Wheel Compact Wheel High-capacity Matter Pod (0) Signal Interpreter Improved Terrain Scanner Seismic Detector Seismic Detector Light Assault Rifle Light Assault Rifle Makeshift Spear Peak State ------------ > --- POWER ------------ Ion Engine > --- PROPULSION ------- Light Treads Wheel > --- UTILITY ---------- High-capacity Storage Unit Improved Terrain Scanner Rainbow Chip > --- WEAPON ----------- EM Pulse Gun Makeshift Spear > --- INVENTORY -------- Ion Engine Light Treads Light Treads Light Treads Light Treads Wheel Compact Wheel Compact Wheel High-capacity Matter Pod Sensor Array Signal Interpreter Seismic Detector Seismic Detector Light Assault Rifle Light Assault Rifle Light Assault Rifle Rocket Launcher Subdweller Shrapnel Launcher [Rating: 27] Favorites ----------- Power Ion Engine Engine Ion Engine Propulsion Wheel Treads Light Treads Wheel Wheel Utility High-capacity Storage Unit Device Sensor Array Storage High-capacity Storage Unit Processor Rainbow Chip Weapon EM Pulse Gun Energy Gun EM Pulse Gun Ballistic Gun Light Assault Rifle Launcher Rocket Launcher Special Weapon Mining Laser Piercing Weapon Makeshift Spear Build | -11 -10 -10 -10 ------- Run | Yrd Mat Min Sub Slots Evolved . | . . . . Power . | . . . . Propulsion . | . . . . Utility . | . . . . Weapon . | . . . . Parts Attached 28 | 7 7 9 5 Power 3 | 1 1 1 . Engine 3 | 1 1 1 . Core . | . . . . Reactor . | . . . . Propulsion 6 | 2 1 1 2 Treads 2 | . . 1 1 Leg . | . . . . Wheel 4 | 2 1 . 1 Hover . | . . . . Flight . | . . . . Utility 9 | 2 3 3 1 Device 6 | 1 2 3 . Storage 2 | 1 1 . . Processor 1 | . . . 1 Hackware . | . . . . Protection . | . . . . Artifact . | . . . . Weapon 10 | 2 2 4 2 Energy Gun 2 | 1 . 1 . Energy Cannon . | . . . . Ballistic Gun 3 | 1 1 1 . Ballistic Cannon . | . . . . Launcher 3 | . . 1 2 Special Weapon 1 | . 1 . . Impact Weapon . | . . . . Slashing Weapon . | . . . . Piercing Weapon 1 | . . 1 . Special Melee Weapon . | . . . . Unidentified Prototypes . | . . . . Parts Lost 9 | . 3 1 5 Power . | . . . . Propulsion 4 | . 1 1 2 Utility 1 | . 1 . . Weapon 4 | . 1 . 3 Highest Loss Streak 4 | . 1 1 4 To Critical Strikes . | . . . . Average Backups 15 | 3 9 19 17 Power . | . 1 1 1 Propulsion 5 | 1 3 7 6 Utility 4 | . 1 5 5 Weapon 4 | . 2 5 5 Tool/Special . | . . . . Unused Backups 12 | . 2 . 10 Power 1 | . . . 1 Propulsion 6 | . 1 . 5 Utility 4 | . 1 . 3 Weapon 1 | . . . 1 Tool/Special . | . . . . Average Slot Usage (%) 98 | . 97 100 98 Engine 13 | . 14 14 13 Treads 6 | . . 5 13 Wheel 21 | . 27 22 13 Device 13 | . 11 14 13 Storage 13 | . 14 14 13 Energy Gun 12 | . 9 13 11 Ballistic Gun 9 | . 17 9 2 Launcher 3 | . . . 10 Piercing Weapon 3 | . . 5 2 Peak Build Rating 27 | 7 9 12 27 Average Rating 9 | 5 7 10 10 On Entrance 7 | . 7 9 12 Naked Turns . | . . . . Heaviest Build 55 | 14 49 52 55 Greatest Support 26 | 26 26 20 10 Greatest Overweight (x) 5 | . 2 4 5 Average Overweight (x) 2 | . . 2 4 Largest Inventory Capacity 20 | 8 20 20 20 Average Capacity 18 | 7 16 20 20 Most Carried 20 | 5 18 20 19 Average Carried 15 | 3 9 19 17 Final Capacity 20 | 8 20 20 20 Final Carried 19 | 5 18 19 14 Class Distribution -------------------- 100% | Mutant Dominant Class ---------------- Mutant | -10/Materials Mutant | -10/Mines Mutant | -10/Subcaves Resources | -11 -10 -10 -10 ----------- Run | Yrd Mat Min Sub Matter Collected 1151 | 274 172 331 374 Remotely . | . . . . Salvage Created 720 | 46 373 125 176 Parts 61 | 7 31 5 18 Haulers Intercepted 2 | . 2 . . Recyclers Shooed 2 | . 2 . . Parts Field Recycled . | . . . . Retrieved Matter . | . . . . Parts Self-Destructed 4 | . . . 4 Prevented 1 | . . . 1 Kills | -11 -10 -10 -10 ------- Run | Yrd Mat Min Sub Combat Hostiles Destroyed 21 | . 9 3 9 Melee 1 | . . 1 . Guns 12 | . 9 1 2 AOE 8 | . . 1 7 Classes Destroyed 8 | 1 5 1 1 Builder 1 | . 1 . . Tunneler 5 | 2 2 1 . Hauler 2 | . 2 . . Watcher 1 | . 1 . . Swarmer 11 | . 8 . 3 Grunt 3 | . 1 2 . Subdweller 6 | . . . 6 Assembled 1 | . . 1 . Best Kill Streak 4 | 2 3 2 4 Combat Bots Only 4 | . 3 2 4 Max Kills in Single Turn 2 | 1 2 1 1 Gunslinging . | . . . . Exploded 1 | . . 1 1 Melee 1 | . . 1 . Uniques/NPCs Destroyed . | . . . . Combat | -11 -10 -10 -10 -------- Run | Yrd Mat Min Sub Hostile Shots Fired 86 | . 43 10 33 Missed 19 | . 7 2 10 Hits 67 | . 36 8 23 Projectile 67 | . 36 8 23 AOE 2 | . . . 2 Critical Strikes 1 | . 1 . . Damage Taken 1083 | . 332 114 637 Core 259 | . 74 28 157 Absorbed by Shields . | . . . . Core Remaining (%) 100 | 100 . . . Volleys Fired 88 | 8 49 8 23 Largest 2 | 2 2 2 2 Hottest 100 | 60 100 60 80 Shots Fired 170 | 16 97 15 42 Gun 147 | 16 96 14 21 Cannon . | . . . . Launcher 22 | . . 1 21 Special 1 | . 1 . . Kinetic 104 | 8 66 7 23 Thermal 1 | . 1 . . Explosive 11 | . . 1 10 Electromagnetic 54 | 8 30 7 9 Robot Hit Streak 12 | 4 6 3 12 Robot Miss Streak 9 | 3 9 2 2 Penetration Max . | . . . . Secondary Targets 3 | . 3 . . Max Gunslinging Chain 1 | . 1 . . Shots Hit Robots 95 | 8 52 12 23 Core Hits 46 | 2 22 5 17 Critical Kills . | . . . . Critical Parts Destroyed . | . . . . Critical Strikes . | . . . . Melee Attacks 9 | . . 7 2 Impact . | . . . . Slashing . | . . . . Piercing 9 | . . 7 2 Sneak Attacks 1 | . . 1 . Combat Hostiles . | . . . . Follow-up Attacks . | . . . . Damage Inflicted 2091 | 92 585 272 1142 Guns 820 | 92 542 77 109 Cannons . | . . . . Explosions 1143 | . 43 67 1033 Melee 128 | . . 128 . Ramming . | . . . . Kinetic 1089 | 22 303 40 724 Thermal 43 | . 43 . . Explosive 440 | . . 67 373 Electromagnetic 391 | 70 239 37 45 Impact . | . . . . Slashing . | . . . . Piercing 128 | . . 128 . Highest Corruption 1 | . 1 1 1 Average Corruption 1 | . 1 1 1 Corruption Purged . | . . . . Corruption Blocked . | . . . . Effects 22 | . 4 10 8 Message Errors 4 | . . 2 2 Matter Fused 7 | . 1 3 3 Heat Flow Errors 4 | . 3 . 1 Parts Fused 1 | . . . 1 Data Loss (minor) 5 | . . 4 1 Data Loss (major) 1 | . . 1 . Overload Shots . | . . . . Overflow Damage 32 | . . 22 10 Projectiles . | . . . . Explosions 10 | . . . 10 Melee 22 | . . 22 . Knockbacks . | . . . . Impact . | . . . . Kinetic . | . . . . Secondary . | . . . . Self-Inflicted Damage 78 | . 38 . 40 Shots 4 | . 1 . 3 Rammed . | . . . . Targets Rammed . | . . . . Kicked . | . . . . Crushed . | . . . . Highest Temperature 270 | 40 270 80 162 Average Temperature 47 | 20 52 28 82 Received Heat Transfer 214 | . 36 91 87 Siege Activations . | . . . . Martial Activations . | . . . . Shielding Activations . | . . . . Robots Disrupted . | . . . . Combat Hostiles . | . . . . Robots Corrupted . | . . . . Combat Hostiles . | . . . . Parts Fried . | . . . . Impact Corruptions . | . . . . Robots Melted . | . . . . Combat Hostiles . | . . . . Parts Melted . | . . . . Heat Transferred 50 | . 50 . . Parts Sabotaged . | . . . . Parts Stolen . | . . . . Parts Stripped . | . . . . Power Chain Reactions 1 | . 1 . . Alert | -11 -10 -10 -10 ------- Run | Yrd Mat Min Sub Maximum Alert Level . | . . . . Low Security (%) 100 | 100 100 100 . Level 1 . | . . . . Level 2 . | . . . . Level 3 . | . . . . Level 4 . | . . . . Level 5 . | . . . . High Security . | . . . . Max Security . | . . . . Peak Influence 79 | 5 79 42 . Initial 19 | . . 19 . Average 8 | . 19 2 . Influence Increases 454 | 10 296 63 85 Destroy 0b10 Robot/C 280 | . 180 40 60 Destroy 0b10 Robot/NC 45 | 10 30 5 . Destroy Leader 46 | . 26 10 10 Successful Hack 27 | . 27 . . Disable Machine 30 | . 30 . . Destroy Structure 11 | . 3 8 . Lose Combat Pursuer 15 | . . . 15 Influence Decreases 454 | 10 246 113 85 Entered New Map 31 | . . 31 . Time Decay 393 | 10 226 72 85 Lost Part 30 | . 20 10 . Squads Dispatched . | . . . . Investigation . | . . . . Extermination . | . . . . Reinforcement . | . . . . Assault . | . . . . Garrison . | . . . . Intercept . | . . . . Searches Triggered . | . . . . Construction Impeded . | . . . . Haulers Reinforced . | . . . . Active Scanning Responses . | . . . . Cargo Convoy Interrupts . | . . . . Stealth | -11 -10 -10 -10 --------- Run | Yrd Mat Min Sub Distress Signals 1 | . 1 . . Communications Jammed . | . . . . Distress Signals . | . . . . Times Spotted 33 | . 17 3 13 Peak Tracking Total 3 | . 3 2 3 Tactical Retreats 1 | . . . 1 Traps | -11 -10 -10 -10 ------- Run | Yrd Mat Min Sub Traps Triggered 4 | . 1 . 3 Indirectly . | . . . . Trap Hack Attempts . | . . . . Triggered . | . . . . Disarmed . | . . . . Reprogrammed . | . . . . Reused . | . . . . Traps Extracted . | . . . . Installed . | . . . . Triggered . | . . . . Machines | -11 -10 -10 -10 ---------- Run | Yrd Mat Min Sub Machines Disabled 3 | . 2 . 1 Max in Single Turn 1 | . 1 . 1 Machines Repaired . | . . . . Machines Dismantled . | . . . . Machines Sabotaged . | . . . . Overloaded Fab Kills . | . . . . Hacking | -11 -10 -10 -10 --------- Run | Yrd Mat Min Sub Machines Accessed 7 | . 5 . 2 Terminals 5 | . 5 . . Fabricators . | . . . . Repair Stations . | . . . . Recycling Units . | . . . . Scanalyzers . | . . . . Garrison Access . | . . . . Total Hacks 19 | . 14 . 5 Successful 12 | . 7 . 5 Failed 6 | . 6 . . Catastrophic 2 | . 2 . . Database Lockouts 1 | . 1 . . Manual 13 | . 13 . . Terminals 14 | . 14 . . Fabricators . | . . . . Repair Stations . | . . . . Recycling Units . | . . . . Scanalyzers . | . . . . Garrison Access . | . . . . Terminal Hacks 11 | . 6 . 5 Record 5 | . 1 . 4 Part Schematic 1 | . 1 . . Robot Analysis 2 | . 2 . . Level Access Points 1 | . 1 . . Registered Components 1 | . 1 . . Proto ID Catalog 1 | . . . 1 Fabricator Hacks . | . . . . Repair Station Hacks . | . . . . Recycling Unit Hacks . | . . . . Scanalyzer . | . . . . Garrison Access Hacks . | . . . . Unauthorized Hacks 1 | . 1 . . Terminals 1 | . 1 . . Operators 1 | . 1 . . Fabricators . | . . . . Repair Stations . | . . . . Recycling Units . | . . . . Scanalyzers . | . . . . Garrison Access . | . . . . Data Cores Recovered . | . . . . Used . | . . . . Hacking Detections 4 | . 4 . . Full Trace Events . | . . . . Feedback Events . | . . . . Feedback Blocked . | . . . . Robot Schematics Acquired . | . . . . Robots Built . | . . . . Authchips . | . . . . Time . | . . . . Total Robot Build Rating . | . . . . Part Schematics Acquired 1 | . 1 . . Parts Built . | . . . . Authchips . | . . . . Time . | . . . . Total Part Build Rating . | . . . . Parts Repaired . | . . . . Time . | . . . . Parts Recycled . | . . . . Recycled Matter . | . . . . Retrieved Matter . | . . . . Retrieved Components . | . . . . Parts Scanalyzed . | . . . . Part Schematics Acquired . | . . . . Parts Damaged . | . . . . Bothacking | -11 -10 -10 -10 ------------ Run | Yrd Mat Min Sub Used RIF Installer . | . . . . Robots Hacked . | . . . . Non-combat . | . . . . Combat . | . . . . Robot Hacks Applied . | . . . . Relay Couplers Released . | . . . . Fabnet Peak Effective % . | . . . . Robots Rewired . | . . . . Allies Hacked . | . . . . Hacks Repelled . | . . . . Allies | -11 -10 -10 -10 -------- Run | Yrd Mat Min Sub Total Allies . | . . . . Largest Group . | . . . . Highest-Rated Group . | . . . . Highest-Rated Ally . | . . . . Total Orders . | . . . . Ally Attacks . | . . . . Total Damage . | . . . . Kills . | . . . . Allies Corrupted . | . . . . Allies Melted . | . . . . Intel | -11 -10 -10 -10 ------- Run | Yrd Mat Min Sub Active Infowar (turns) 3151 | 16 700 1323 1112 Sensors 2067 | . . 981 1086 Terrain 321 | . 41 254 26 Seismic 763 | 16 659 88 . Robot Analysis Total 2 | . 2 . . Derelict Logs Recovered 2 | . . 1 1 Drone Launches . | . . . . Drone Recoveries . | . . . . Exploration | -11 -10 -10 -10 ------------- Run | Yrd Mat Min Sub Turns Passed 3406 | 111 857 1323 1115 Spaces Moved 2059 | 74 526 815 644 Core 3 | 3 . . . Treads . | . . . . Legs . | . . . . Wheels 2056 | 71 526 815 644 Hover . | . . . . Flight . | . . . . Fastest Speed 50 | 50 90 110 140 Average Speed 124 | 88 98 122 151 Slowest Speed 155 | 100 110 140 155 Overloaded Moves . | . . . . Propulsion Burnouts . | . . . . Robots Hopped . | . . . . Potential Cave-ins . | . . . . Cave-ins Triggered . | . . . . Exploration Rate (%) 56 | 4 67 98 57 Regions Visited 3 Branch Regions 2 Pre-discovered Areas 1 | . . . 1 Known Exits Taken . | . . . . Unknown Exits Taken 3 | 1 1 1 . Scrap Searched 1 | . . 1 . Spaces Dug 8 | . . . 8 Terrain Destroyed 212 | . 3 8 201 Melee . | . . . . Projectile . | . . . . AOE 212 | . 3 8 201 Terrain Rammed . | . . . . Walls Destroyed . | . . . . Machines Disabled . | . . . . Actions | -11 -10 -10 -10 --------- Run | Yrd Mat Min Sub Total 2727 | 101 777 1113 736 Wait 486 | 8 173 264 41 Move 2056 | 73 525 814 644 Hop . | . . . . Pick Up 31 | 5 17 4 5 Fast Attach 8 | 7 1 . . Attach 12 | . 3 1 8 Detach 2 | . 1 . 1 Swap 23 | . 4 12 7 Drop 12 | . 4 3 5 Fire 88 | 8 49 8 23 Melee 9 | . . 7 2 Ram . | . . . . Kick . | . . . . Crush . | . . . . Escape Stasis . | . . . . Rewire . | . . . . Trap . | . . . . Miscellaneous . | . . . . Route ------- -11/Scrapyard -10/Materials (discovered 4 exits: *Mat x3 / [*Min]) -10/Mines (discovered 3 exits: *Mat x2 / *Sub) -10/Subcaves History --------- Turn | Location | Event 30 | -11/Scrapyard | Discovered new exit (range 16) 112 | -11/Scrapyard | Entered Materials 307 | -10/Materials | Build established: Mutant 329 | -10/Materials | Identified exit to Materials 740 | -10/Materials | Discovered new exit (range 16) 793 | -10/Materials | Central database locked down 969 | -10/Materials | Entered Mines 970 | -10/Mines | Assembled infested the area 974 | -10/Mines | Learned 2 Materials zone layouts 1276 | -10/Mines | A weapon hastily lodged in a ceiling crevice suddenly fell to the ground 1369 | -10/Mines | Discovered exit to Materials (range 15) 1597 | -10/Mines | Discovered exit to Materials (range 5) 1693 | -10/Mines | Received a Rocket Launcher from a helpful Derelict 1861 | -10/Mines | Discovered new exit (range 7) 2292 | -10/Mines | Entered Subcaves 2302 | -10/Subcaves | Shifting Twisted Machinery released Sub. Shrapnel Launcher 2312 | -10/Subcaves | Shifting Twisted Machinery released Piercing Trap 2354 | -10/Subcaves | Visited Clippyterm 2359 | -10/Subcaves | Learned Factory trap positions 2610 | -10/Subcaves | Visited 4L-MR0's lab 2633 | -10/Subcaves | Found Rainbow Chip 2635 | -10/Subcaves | Attached Rainbow Chip, gained temporary slots: Power, Propulsion, Utility, Weapon 3258 | -10/Subcaves | Core integrity fell below 50% 3263 | -10/Subcaves | Ambushed by Subdweller buried in earth 3268 | -10/Subcaves | Ambushed by Subdweller buried in earth 3273 | -10/Subcaves | Core integrity fell below 20% 3308 | -10/Subcaves | Lost 4 parts (2n2w) 3309 | -10/Subcaves | Learned location of Zion (-7) 3407 | -10/Subcaves | Destroyed by 9H-AF2(R) with Subdweller Laser Last Messages --------------- 03264_ 09-HYM(R): "ARGHSUB!" 03265_ R7-S57(R) destroyed. 03269_ 1E-YDR(R): "SLEEPOVER!" 03269_ Subatomizers dissect the Sub. Shrapnel Launcher. 03272_ 1E-YDR(R) destroyed. 03277_ 09-HYM(R) destroyed. 03277_ Wheel destroyed. 03277_ Destroyed Wheel. 03279_ The unstable cave ceiling collapses. 03293_ Subatomizers dissect the Sub. Shrapnel Launcher. 03296_ Acquired Sub. Shrapnel Launcher. 03309_ Acquired derelict log, extracted data. World map updated: -7/Zion. 03322_ System corrupted: Matter fused (-5). 03326_ Dropped Hcp. Matter Pod. 03327_ Extracted 200 matter. 03327_ Acquired Hcp. Matter Pod. 03404_ Sub. Shrapnel Launcher destroyed. Map ----- +----------------------------------------------------+ | ????????????????????## ###????????????? | | ????????????????????# & ##???????????? | | ?????????????????# & #???????????? | | # ?????????????????# #???????????? | | ###??????????????????# ##??????????? | | ?????????????????????## #??????????? | | ??????????????????????# #??????????? | | ??????????????????????# # ###????????? | | ?????????????????????### ##???????? | | ?????????????????????# #???????? | | ????????????????????## # #???????? | | ????????????????????# " #???????? | | ????????????????????# "## ##???????? | | ????????????????????# " #???????? | | ????????????????????# ##???????? | | ????????????????????## #####????????? | | ?????????????????????## #????????????? | | ??????????????????????## ;"""" #????????????? | | ???????????????????????# #######????????????? | | ??????????????????????## ##??????????????????? | | ??????????????????????# " #???????????????????? | | ??????????????????????# " ##??????????????????? | | ??????????????????????## #??????????????????? | | ??????????????????????## ##?????????????????? | | ??????????????????????# ;;#?????????????????? | | ??????????????????????#; @ ;#?????????????????? | | ?????????????????????# ; ;#?????????????????? | | ????????????????????# ;; ;##?????????????????? | | ????????????????????# ; ;#??????????????????? | | ????????????????????# ;; ;#??????????????????? | | ????????????????????###; ;??????????????????? | | ??????????????????????# ;;??????????????????? | | ??????????????????????# ###?????????????????? | | ??????????????????????# ;#??????????????????? | | ??????????????????????;; #??????????????????? | | ??????????????????????; R;#??????????????????? | | ??????????????????????#;RR;###????????????????? | | ??????????????????????; ##???????????????? | | ??????????????????????; ##??????????????? | | ??????????????????????; ; # #??????????????? | | ??????????????????????###;### #??????????????? | | ????????????????????????????# #??????????????? | | ???????????????????????????## #??????????????? | | ???????????????????????????# #??????????????? | | ???????????????????????????# ##??????????????? | | ???????????????????????????## #???????????????? | | ???????????????????????????# ##??????????????? | | ???????????????????????????# #??????????????? | | ???????????????????????????# #??????????????? | | ???????????????????????????# ##??????????????? | +----------------------------------------------------+ Best States ------------- Heat Dissipation 25 Energy Generation 10 Energy Capacity 250 Matter Stores 300 Matter Capacity 300 Sight Range 16 Robot Scan Range 14 Terrain Scan Range 16 Terrain Scan Density 10 Evasion (%) 42 Recoil Reduction 1 Item Schematics ----------------- Seismic Detector | -10/Materials | Hacked Robot Schematics ------------------ None Fabricated ------------ Nothing Repaired ---------- Nothing Alien Tech Used ----------------- None Achievements -------------- None Challenges ------------ None Game ------ Seed LegSuperdenseWings Manual? 0 Play Time 00:29:10 Cumulative 83.8 hours Start 2025.08.01 @ 00:47:43 End 2025.08.01 @ 01:14:59 Sessions 1 Manual Loads 0 Difficulty Rogue Special Mode None Game No. 107 Rogue 107 Adventurer 0 Explorer 0 Win Type - Total 0 Types 0/0/0/0/0/0/0/0/0/0 Lore% 57 Gallery% 40 Achievement% 39 Wizard Run 0 Options --------- Layout 1 ASCII 0 Keyboard 0 Movement Arrows Keybinds 0 Fullscreen 1 Font 24/Smallcaps Map View 50x35 Zoom Use 0% Tactical HUD 1 Map Filters NONE Filters NONE Steam 1 RUN: 9d4384b9-13cf-486c-8c08-d30e2efef0fd